fUSD/lending_fUSD_20250422
["ID","MTS","AMOUNT","RATE_DAILY","PERIOD"]
[358592230,1745295062890,-500.0,0.0005589,120]
[358592231,1745295062899,-500.0,0.0005589,120]
[358592232,1745295062908,-500.0,0.0005589,120]
[358592233,1745295062919,-500.0,0.0005589,120]
[358592234,1745295062928,-500.0,0.0005589,120]
[358592235,1745295062937,-500.0,0.0005589,120]
[358592236,1745295062947,-500.0,0.0005589,120]
[358592237,1745295062958,-500.0,0.0005589,120]
[358592238,1745295062968,-500.0,0.0005589,120]
[358592239,1745295062977,-500.0,0.0005589,120]
[358592240,1745295062987,-500.0,0.0005589,120]
[358592241,1745295062996,-500.0,0.0005589,120]
[358592242,1745295063006,-500.0,0.0005589,120]
[358592243,1745295063015,-500.0,0.0005589,120]
[358592244,1745295063024,-500.0,0.0005589,120]
[358592245,1745295063034,-500.0,0.0005589,120]
[358592246,1745295063044,-500.0,0.0005589,120]
[358592247,1745295063054,-509.45,0.0005589,120]
[358592248,1745295063063,-500.0,0.0005589,120]
[358592249,1745295063074,-500.0,0.0005589,120]
[358592250,1745295063084,-500.0,0.0005589,120]
[358592251,1745295063093,-500.0,0.0005589,120]
[358592252,1745295063103,-515.19,0.0005589,120]
[358592253,1745295063112,-500.0,0.0005589,120]
[358592254,1745295063122,-500.0,0.0005589,120]
[358592255,1745295063132,-500.0,0.0005589,120]
[358592256,1745295063141,-500.0,0.0005589,120]
[358592257,1745295063151,-500.0,0.0005589,120]
[358592258,1745295063161,-500.0,0.0005589,120]
[358592259,1745295063170,-314.5612232,0.0005589,120]
[358592260,1745295063180,-500.0,0.0005589,120]
[358592261,1745295063189,-500.0,0.0005589,120]
[358592262,1745295063198,-500.0,0.0005589,120]
[358592263,1745295063207,-500.0,0.0005589,120]
[358592264,1745295063217,-500.0,0.0005589,120]
[358592265,1745295063226,-500.0,0.0005589,120]
[358592266,1745295063235,-514.63786878,0.0005589,120]
[358592267,1745295063244,-500.0,0.0005589,120]
[358592268,1745295063254,-500.0,0.0005589,120]
[358592269,1745295063263,-1064.2,0.0005589,120]
[358592270,1745295063272,-523.02,0.0005589,120]
[358592271,1745295063282,-500.0,0.0005589,2]
[358592272,1745295063291,-500.0,0.0005589,120]
[358592273,1745295063300,-500.0,0.0005589,120]
[358592274,1745295063309,-500.0,0.0005589,120]
[358592275,1745295063319,-612.98469192,0.0005589,120]
[358592276,1745295063328,-500.0,0.0005589,120]
[358592277,1745295063337,-500.0,0.0005589,120]
[358592278,1745295063346,-500.0,0.0005589,120]
[358592279,1745295063355,-500.0,0.0005589,120]
[358592280,1745295063364,-500.0,0.0005589,120]
[358592281,1745295063374,-500.0,0.0005589,120]
[358592282,1745295063383,-151.0,0.0005589,120]
[358592283,1745295063392,-20766.77,0.0005589,120]
[358592284,1745295063401,-500.0,0.0005589,120]
[358592285,1745295063410,-500.0,0.0005589,120]
[358592286,1745295063419,-500.0,0.0005589,120]
[358592287,1745295063428,-500.0,0.0005589,120]
[358592288,1745295063438,-500.0,0.0005589,120]
[358592289,1745295063447,-500.0,0.0005589,120]
[358592290,1745295063456,-1000.0,0.0005589,35]
[358592291,1745295063466,-500.0,0.0005589,120]
[358592292,1745295063475,-500.0,0.0005589,120]
[358592293,1745295063484,-500.0,0.0005589,120]
[358592294,1745295063494,-500.0,0.0005589,120]
[358592295,1745295063504,-500.0,0.0005589,120]
[358592296,1745295063513,-500.0,0.0005589,120]
[358592297,1745295063523,-1000.0,0.0005589,120]
[358592298,1745295063532,-500.0,0.0005589,120]
[358592299,1745295063542,-500.0,0.0005589,120]
[358592300,1745295063551,-500.0,0.0005589,120]
[358592301,1745295063560,-545.52,0.0005589,120]
[358592302,1745295063569,-2205.73,0.0005589,120]
[358592303,1745295063578,-500.0,0.0005589,120]
[358592304,1745295063588,-500.0,0.0005589,120]
[358592305,1745295063598,-500.0,0.0005589,120]
[358592306,1745295063607,-500.0,0.0005589,120]
[358592307,1745295063616,-211.34226312,0.0005589,120]
[358592308,1745295063625,-500.0,0.0005589,120]
[358592309,1745295063634,-500.0,0.0005589,120]
[358592310,1745295063644,-1121.58,0.0005589,120]
[358592311,1745295063653,-500.0,0.0005589,120]
[358592312,1745295063663,-500.0,0.0005589,120]
[358592313,1745295063672,-500.0,0.0005589,120]
[358592314,1745295063681,-500.0,0.0005589,120]
[358592315,1745295063691,-500.0,0.0005589,120]
[358592316,1745295063700,-500.0,0.0005589,118]
[358592317,1745295063710,-705.34,0.0005589,120]
[358592318,1745295063719,-500.0,0.0005589,120]
[358592319,1745295063728,-500.0,0.0005589,120]
[358592320,1745295063737,-684.17,0.0005589,120]
[358592321,1745295063747,-500.0,0.0005589,120]
[358592322,1745295063755,-500.0,0.0005589,120]
[358592323,1745295063764,-500.0,0.0005589,120]
[358592324,1745295063773,-508.22,0.0005589,120]
[358592325,1745295063782,-500.0,0.0005589,120]
[358592326,1745295063791,-3000.0,0.0005589,120]
[358592327,1745295063801,-999.0,0.0005589,120]
[358592328,1745295063810,-500.0,0.0005589,120]
[358592329,1745295063820,-279.71178639,0.0005589,120]
[358592330,1745295063829,-500.0,0.0005589,120]
[358592331,1745295063838,-500.0,0.0005589,120]
[358592332,1745295063848,-605.41251566,0.0005589,120]
[358592333,1745295063857,-500.0,0.0005589,120]
[358592334,1745295063866,-500.0,0.0005589,120]
[358592335,1745295063876,-500.0,0.0005589,120]
[358592336,1745295063885,-1348.73,0.0005589,120]
[358592337,1745295063894,-695.38,0.0005589,120]
[358592338,1745295063904,-500.0,0.0005589,30]
[358592339,1745295063916,-500.0,0.0005589,120]
[358592340,1745295063925,-500.0,0.0005589,120]
[358592341,1745295063935,-500.0,0.0005589,120]
[358592342,1745295063944,-500.0,0.0005589,120]
[358592343,1745295063954,-264.25018026,0.0005589,120]
[358592344,1745295063964,-500.0,0.0005589,120]
[358592345,1745295063973,-500.0,0.0005589,120]
[358592346,1745295063981,-500.0,0.0005589,120]
[358592347,1745295063993,-500.0,0.0005589,120]
[358592348,1745295064004,-500.0,0.0005589,120]
[358592349,1745295064013,-500.0,0.0005589,120]
[358592350,1745295064023,-500.0,0.0005589,120]
[358592351,1745295064032,-628.71,0.0005589,120]
[358592352,1745295064041,-500.0,0.0005589,120]
[358592353,1745295064051,-500.0,0.0005589,120]
[358592354,1745295064060,-500.0,0.0005589,120]
[358592355,1745295064069,-558.46,0.0005589,120]
[358592356,1745295064080,-500.0,0.0005589,120]
[358592357,1745295064089,-500.0,0.0005589,120]
[358592358,1745295064099,-548.78,0.0005589,120]
[358592359,1745295064107,-500.0,0.0005589,120]
[358592360,1745295064117,-500.0,0.0005589,120]
[358592361,1745295064126,-500.0,0.0005589,120]
[358592362,1745295064135,-1159.28,0.0005589,120]
[358592363,1745295064144,-500.0,0.0005589,120]
[358592364,1745295064153,-695.53,0.0005589,120]
[358592365,1745295064164,-500.0,0.0005589,120]
[358592366,1745295064173,-500.0,0.0005589,120]
[358592367,1745295064183,-500.0,0.0005589,120]
[358592368,1745295064193,-500.0,0.0005589,120]
[358592369,1745295064202,-500.0,0.0005589,120]
[358592370,1745295064211,-819.39,0.0005589,120]
[358592371,1745295064221,-494.56883684,0.0005589,120]
[358592372,1745295064230,-500.0,0.0005589,120]
[358592373,1745295064240,-500.0,0.0005589,120]
[358592374,1745295064249,-500.0,0.0005589,120]
[358592375,1745295064258,-500.0,0.0005589,120]
[358592376,1745295064267,-500.0,0.0005589,120]
[358592377,1745295064277,-500.0,0.0005589,120]
[358592378,1745295064286,-500.0,0.0005589,120]
[358592379,1745295064296,-500.0,0.0005589,120]
[358592380,1745295064304,-500.0,0.0005589,120]
[358592381,1745295064314,-568.16,0.0005589,120]
[358592382,1745295064322,-500.0,0.0005589,120]
[358592383,1745295064331,-500.0,0.0005589,120]
[358592384,1745295064340,-534.15,0.0005589,120]
[358592385,1745295064350,-500.0,0.0005589,120]
[358592386,1745295064359,-534.52,0.0005589,120]
[358592387,1745295064368,-1643.32,0.0005589,120]
[358592388,1745295064377,-2238.72,0.0005589,2]
[358592389,1745295064387,-501.13,0.0005589,120]
[358592390,1745295064395,-500.0,0.0005589,120]
[358592391,1745295064406,-510.24448523,0.0005589,120]
[358592392,1745295064416,-632.59,0.0005589,120]
[358592393,1745295064426,-469.08815542,0.0005589,120]
[358592394,1745295064435,-500.0,0.0005589,120]
[358592395,1745295064444,-500.0,0.0005589,120]
[358592396,1745295064455,-500.0,0.0005589,120]
[358592397,1745295064464,-500.0,0.0005589,120]
[358592398,1745295064474,-500.0,0.0005589,120]
[358592399,1745295064483,-1217.58,0.0005589,120]
[358592400,1745295064493,-500.0,0.0005589,120]
[358592401,1745295064502,-500.0,0.0005589,120]
[358592402,1745295064511,-734.8,0.0005589,120]
[358592403,1745295064520,-637.1596069,0.0005589,120]
[358592404,1745295064529,-512.63,0.0005589,120]
[358592405,1745295064539,-476.73247122,0.0005589,120]
[358592406,1745295064549,-500.0,0.0005589,120]
[358592407,1745295064559,-500.0,0.0005589,120]
[358592408,1745295064568,-535.91,0.0005589,120]
[358592409,1745295064577,-500.0,0.0005589,120]
[358592410,1745295064587,-500.0,0.0005589,120]
[358592411,1745295064596,-500.0,0.0005589,120]
[358592412,1745295064606,-500.0,0.0005589,120]
[358592413,1745295064617,-252.805805,0.0005589,120]
[358592414,1745295064628,-500.0,0.0005589,120]
[358592415,1745295064638,-525.32,0.0005589,120]
[358592416,1745295064648,-500.0,0.0005589,120]
[358592417,1745295064658,-252.805805,0.0005589,120]
[358592418,1745295064669,-445.85633719,0.0005589,120]
[358592419,1745295064679,-500.0,0.0005589,120]
[358592420,1745295064689,-500.0,0.0005589,120]
[358592421,1745295064699,-500.0,0.0005589,120]
[358592422,1745295064708,-500.0,0.0005589,120]
[358592423,1745295064718,-500.0,0.0005589,120]
[358592424,1745295064727,-500.0,0.0005589,120]
[358592425,1745295064736,-500.0,0.0005589,120]
[358592426,1745295064745,-356.80327329,0.0005589,120]
[358592427,1745295064755,-500.0,0.0005589,120]
[358592428,1745295064764,-640.08786523,0.0005589,120]
[358592429,1745295064773,-1224.65,0.0005589,120]
[358592430,1745295064782,-500.0,0.0005589,120]
[358592431,1745295064791,-500.0,0.0005589,120]
[358592432,1745295064800,-500.0,0.0005589,120]
[358592433,1745295064809,-740.11,0.0005589,120]
[358592434,1745295064818,-1297.76,0.0005589,120]
[358592435,1745295064828,-500.0,0.0005589,120]
[358592436,1745295064837,-500.0,0.0005589,120]
[358592437,1745295064846,-500.0,0.0005589,120]
[358592438,1745295064856,-500.0,0.0005589,120]
[358592439,1745295064865,-500.0,0.0005589,2]
[358592440,1745295064875,-500.0,0.0005589,120]
[358592441,1745295064884,-1827.12029565,0.000559,90]
[358592442,1745295064893,-2039.11,0.00055943,2]
[358592443,1745295064903,-1529.15,0.0005599,30]
[358592444,1745295064915,-50000.0,0.00056,56]
[358592445,1745295064925,-250.0,0.00056,5]
[358592446,1745295064934,-700.0,0.00056,120]
[358592447,1745295064943,-534.94732,0.00056,120]
[358592448,1745295064953,-175.193807,0.00056,120]
[358592449,1745295064962,-534.94732,0.00056,120]
[358592450,1745295064971,-151.0,0.00056,120]
[358592451,1745295064981,-176.954828,0.00056,120]
[358592452,1745295064991,-176.954828,0.00056,120]
[358592453,1745295065000,-151.0,0.00056,120]
[358592454,1745295065009,-151.0,0.00056,120]
[358592455,1745295065018,-611.122299,0.00056,120]
[358592456,1745295065027,-611.122299,0.00056,120]
[358592457,1745295065036,-151.0,0.00056,120]
[358592458,1745295065046,-700.0,0.00056,120]
[358592459,1745295065055,-211.19788319,0.00056093,120]
[358592460,1745295065065,-1000.0,0.0005614,120]
[358592461,1745295065074,-247.4230902,0.00056162,2]
[358592462,1745295065084,-566.2460085,0.00056162,2]
[358592463,1745295065094,-1036.7332252,0.00056162,2]
[358592464,1745295065103,-150.0,0.00056164,2]
[358592465,1745295065112,-150.0,0.00056164,2]
[358592466,1745295065122,-150.0,0.00056164,2]
[358592467,1745295065131,-500.0,0.00056164,120]
[358592468,1745295065141,-200.0,0.000562,105]
[358592469,1745295065150,-37929.47,0.000562,60]
[358592470,1745295065159,-30000.0,0.000562,30]
[358592471,1745295065309,-156.093371,0.000562,120]
[358592472,1745295065319,-151.0,0.000562,120]
[358592473,1745295065329,-150.0,0.00056341,120]
[358592474,1745295065338,-2700.0,0.00056348,120]
[358592475,1745295065347,-244.07757749,0.00056349,2]
[358592476,1745295065356,-10909.0714479,0.00056399,2]
[358592477,1745295065365,-89923.15,0.00056438,7]
[358592478,1745295065374,-187.884564,0.00056438,120]
[358592479,1745295065383,-298.945392,0.00056438,120]
[358592480,1745295065392,-1123.355858,0.00056438,120]
[358592481,1745295065401,-623.8031,0.00056438,2]
[358592482,1745295065412,-623.803102,0.00056438,2]
[358592483,1745295065421,-500.0,0.00056438,120]
[358592484,1745295065430,-151.0,0.00056438,120]
[358592485,1745295065439,-574.29201837,0.00056438,120]
[358592486,1745295065448,-368.38808196,0.00056438,120]
[358592487,1745295065458,-500.0,0.00056438,120]
[358592488,1745295065467,-500.0,0.00056438,120]
[358592489,1745295065476,-500.0,0.00056438,120]
[358592490,1745295065485,-500.0,0.00056438,60]
[358592491,1745295065495,-600.0,0.00056438,120]
[358592492,1745295065503,-500.0,0.00056438,120]
[358592493,1745295065513,-500.0,0.00056438,120]
[358592494,1745295065523,-500.0,0.00056438,120]
[358592495,1745295065533,-500.0,0.00056438,120]
[358592496,1745295065543,-500.0,0.00056438,120]
[358592497,1745295065554,-1000.0,0.00056438,120]
[358592498,1745295065565,-500.0,0.00056438,120]
[358592499,1745295065574,-500.0,0.00056438,120]
[358592500,1745295065583,-240.12892522,0.00056438,120]
[358592501,1745295065592,-500.0,0.00056438,120]
[358592502,1745295065601,-500.0,0.00056438,120]
[358592503,1745295065611,-458.48141344,0.00056438,120]
[358592504,1745295065620,-500.0,0.00056438,120]
[358592505,1745295065629,-500.0,0.00056438,120]
[358592506,1745295065639,-367.726189,0.00056438,120]
[358592507,1745295065648,-500.0,0.00056438,120]
[358592508,1745295065657,-500.0,0.00056438,120]
[358592509,1745295065668,-500.0,0.00056438,120]
[358592510,1745295065677,-500.0,0.00056438,120]
[358592511,1745295065687,-500.0,0.00056438,120]
[358592512,1745295065696,-243.85682697,0.00056438,120]
[358592513,1745295065706,-500.0,0.00056438,120]
[358592514,1745295065717,-500.0,0.00056438,120]
[358592515,1745295065727,-500.0,0.00056438,120]
[358592516,1745295065737,-500.0,0.00056438,120]
[358592517,1745295065747,-500.0,0.00056438,120]
[358592518,1745295065756,-500.0,0.00056438,120]
[358592519,1745295065766,-574.32,0.00056438,120]
[358592520,1745295065775,-500.0,0.00056438,120]
[358592521,1745295065785,-500.0,0.00056438,120]
[358592522,1745295065795,-500.0,0.00056438,120]
[358592523,1745295065805,-500.0,0.00056438,120]
[358592524,1745295065814,-500.0,0.00056438,120]
[358592525,1745295065824,-151.0,0.00056438,120]
[358592526,1745295065834,-500.0,0.00056438,120]
[358592527,1745295065843,-673.62,0.00056438,120]
[358592528,1745295065852,-500.0,0.00056438,120]
[358592529,1745295065862,-552.18090011,0.00056438,120]
[358592530,1745295065871,-151.0,0.00056438,120]
[358592531,1745295065880,-500.0,0.00056438,120]
[358592532,1745295065890,-500.0,0.00056438,120]
[358592533,1745295065899,-351.56249944,0.00056438,120]
[358592534,1745295065908,-500.0,0.00056438,30]
[358592535,1745295065923,-843.87,0.00056438,120]
[358592536,1745295065932,-500.0,0.00056438,120]
[358592537,1745295065941,-500.0,0.00056438,120]
[358592538,1745295065950,-510.75571469,0.00056438,120]
[358592539,1745295065962,-500.0,0.00056438,120]
[358592540,1745295065971,-500.0,0.00056438,120]
[358592541,1745295065980,-500.0,0.00056438,120]
[358592542,1745295065990,-375.15608042,0.00056438,120]
[358592543,1745295065999,-500.0,0.00056438,120]
[358592544,1745295066009,-500.0,0.00056438,120]
[358592545,1745295066019,-500.0,0.00056438,120]
[358592546,1745295066028,-500.0,0.00056438,120]
[358592547,1745295066037,-500.0,0.00056438,120]
[358592548,1745295066047,-269.16184678,0.00056438,120]
[358592549,1745295066057,-500.0,0.00056438,120]
[358592550,1745295066066,-500.0,0.00056438,120]
[358592551,1745295066075,-500.0,0.00056438,120]
[358592552,1745295066085,-1312.2,0.00056438,120]
[358592553,1745295066095,-500.0,0.00056438,120]
[358592554,1745295066105,-500.0,0.00056438,120]
[358592555,1745295066115,-500.0,0.00056438,120]
[358592556,1745295066124,-500.0,0.00056438,120]
[358592557,1745295066135,-500.0,0.00056438,120]
[358592558,1745295066145,-500.0,0.00056438,120]
[358592559,1745295066154,-500.0,0.00056438,120]
[358592560,1745295066165,-662.48,0.00056438,120]
[358592561,1745295066174,-500.0,0.00056438,120]
[358592562,1745295066184,-500.0,0.00056438,120]
[358592563,1745295066193,-583.55,0.00056438,120]
[358592564,1745295066202,-539.25,0.00056438,120]
[358592565,1745295066212,-212.43593,0.00056438,120]
[358592566,1745295066221,-500.0,0.00056438,120]
[358592567,1745295066230,-500.0,0.00056438,120]
[358592568,1745295066239,-500.0,0.00056438,120]
[358592569,1745295066249,-500.0,0.00056438,120]
[358592570,1745295066258,-500.0,0.00056438,120]
[358592571,1745295066268,-151.0,0.00056438,120]
[358592572,1745295066277,-500.0,0.00056438,120]
[358592573,1745295066286,-500.0,0.00056438,120]
[358592574,1745295066296,-500.0,0.00056438,120]
[358592575,1745295066305,-492.07338841,0.00056438,120]
[358592576,1745295066314,-500.0,0.00056438,120]
[358592577,1745295066324,-500.0,0.00056438,120]
[358592578,1745295066334,-500.0,0.00056438,120]
[358592579,1745295066343,-500.0,0.00056438,120]
[358592580,1745295066352,-500.0,0.00056438,120]
[358592581,1745295066362,-500.0,0.00056438,120]
[358592582,1745295066371,-500.0,0.00056438,120]
[358592583,1745295066381,-500.0,0.00056438,120]
[358592584,1745295066391,-500.0,0.00056438,120]
[358592585,1745295066400,-500.0,0.00056438,120]
[358592586,1745295066409,-509.45,0.00056438,120]
[358592587,1745295066419,-500.0,0.00056438,120]
[358592588,1745295066429,-500.0,0.00056438,120]
[358592589,1745295066438,-500.0,0.00056438,120]
[358592590,1745295066447,-3289.934607,0.00056438,120]
[358592591,1745295066457,-151.0,0.00056438,120]
[358592592,1745295066466,-3289.934607,0.00056438,120]
[358592593,1745295066475,-500.0,0.00056438,120]
[358592594,1745295066485,-515.19,0.00056438,120]
[358592595,1745295066495,-500.0,0.00056438,120]
[358592596,1745295066503,-203.36738169,0.00056438,120]
[358592597,1745295066513,-151.0,0.00056438,120]
[358592598,1745295066523,-500.0,0.00056438,120]
[358592599,1745295066533,-500.0,0.00056438,120]
[358592600,1745295066542,-500.0,0.00056438,120]
[358592601,1745295066552,-500.0,0.00056438,120]
[358592602,1745295066561,-500.0,0.00056438,120]
[358592603,1745295066570,-379.25721339,0.00056438,120]
[358592604,1745295066579,-500.0,0.00056438,120]
[358592605,1745295066588,-500.0,0.00056438,120]
[358592606,1745295066597,-628.20657066,0.00056438,120]
[358592607,1745295066606,-500.0,0.00056438,120]
[358592608,1745295066616,-500.0,0.00056438,120]
[358592609,1745295066625,-500.0,0.00056438,120]
[358592610,1745295066634,-1064.2,0.00056438,120]
[358592611,1745295066643,-523.02,0.00056438,120]
[358592612,1745295066652,-500.0,0.00056438,2]
[358592613,1745295066662,-500.0,0.00056438,120]
[358592614,1745295066671,-168.23044261,0.00056438,120]
[358592615,1745295066680,-500.0,0.00056438,120]
[358592616,1745295066689,-358.37296837,0.00056438,120]
[358592617,1745295066698,-500.0,0.00056438,120]
[358592618,1745295066708,-500.0,0.00056438,120]
[358592619,1745295066717,-500.0,0.00056438,120]
[358592620,1745295066726,-500.0,0.00056438,120]
[358592621,1745295066735,-500.0,0.00056438,120]
[358592622,1745295066744,-151.0,0.00056438,120]
[358592623,1745295066754,-20766.77,0.00056438,120]
[358592624,1745295066763,-500.0,0.00056438,120]
[358592625,1745295066772,-500.0,0.00056438,120]
[358592626,1745295066781,-500.0,0.00056438,120]
[358592627,1745295066791,-500.0,0.00056438,120]
[358592628,1745295066800,-500.0,0.00056438,120]
[358592629,1745295066809,-500.0,0.00056438,120]
[358592630,1745295066818,-1000.0,0.00056438,35]
[358592631,1745295066828,-500.0,0.00056438,120]
[358592632,1745295066837,-500.0,0.00056438,120]
[358592633,1745295066846,-500.0,0.00056438,120]
[358592634,1745295066864,-500.0,0.00056438,120]
[358592635,1745295066875,-500.0,0.00056438,120]
[358592636,1745295066884,-500.0,0.00056438,120]
[358592637,1745295066893,-1000.0,0.00056438,120]
[358592638,1745295066903,-500.0,0.00056438,120]
[358592639,1745295066916,-500.0,0.00056438,120]
[358592640,1745295066926,-500.0,0.00056438,120]
[358592641,1745295066935,-545.52,0.00056438,120]
[358592642,1745295066944,-2205.73,0.00056438,120]
[358592643,1745295066954,-607.10618503,0.00056438,120]
[358592644,1745295066963,-500.0,0.00056438,120]
[358592645,1745295066973,-500.0,0.00056438,120]
[358592646,1745295066982,-500.0,0.00056438,120]
[358592647,1745295066993,-500.0,0.00056438,120]
[358592648,1745295067004,-500.0,0.00056438,120]
[358592649,1745295067014,-1121.58,0.00056438,120]
[358592650,1745295067024,-500.0,0.00056438,120]
[358592651,1745295067034,-500.0,0.00056438,120]
[358592652,1745295067043,-500.0,0.00056438,120]
[358592653,1745295067052,-500.0,0.00056438,120]
[358592654,1745295067061,-500.0,0.00056438,120]
[358592655,1745295067071,-500.0,0.00056438,118]
[358592656,1745295067081,-224.993622,0.00056438,120]
[358592657,1745295067090,-705.34,0.00056438,120]
[358592658,1745295067099,-500.0,0.00056438,120]
[358592659,1745295067109,-500.0,0.00056438,120]
[358592660,1745295067119,-224.993622,0.00056438,120]
[358592661,1745295067128,-684.17,0.00056438,120]
[358592662,1745295067137,-500.0,0.00056438,120]
[358592663,1745295067147,-500.0,0.00056438,120]
[358592664,1745295067157,-500.0,0.00056438,120]
[358592665,1745295067169,-508.22,0.00056438,120]
[358592666,1745295067179,-500.0,0.00056438,120]
[358592667,1745295067188,-169.8247389,0.00056438,120]
[358592668,1745295067198,-999.0,0.00056438,120]
[358592669,1745295067208,-500.0,0.00056438,120]
[358592670,1745295067217,-500.0,0.00056438,120]
[358592671,1745295067227,-500.0,0.00056438,120]
[358592672,1745295067236,-500.0,0.00056438,120]
[358592673,1745295067245,-500.0,0.00056438,120]
[358592674,1745295067255,-500.0,0.00056438,120]
[358592675,1745295067264,-1348.73,0.00056438,120]
[358592676,1745295067273,-695.38,0.00056438,120]
[358592677,1745295067283,-500.0,0.00056438,30]
[358592678,1745295067292,-500.0,0.00056438,120]
[358592679,1745295067301,-500.0,0.00056438,120]
[358592680,1745295067311,-500.0,0.00056438,120]
[358592681,1745295067320,-500.0,0.00056438,120]
[358592682,1745295067329,-500.0,0.00056438,120]
[358592683,1745295067338,-500.0,0.00056438,120]
[358592684,1745295067347,-500.0,0.00056438,120]
[358592685,1745295067358,-500.0,0.00056438,120]
[358592686,1745295067367,-500.0,0.00056438,120]
[358592687,1745295067377,-500.0,0.00056438,120]
[358592688,1745295067386,-500.0,0.00056438,120]
[358592689,1745295067396,-628.71,0.00056438,120]
[358592690,1745295067405,-226.29060407,0.00056438,120]
[358592691,1745295067415,-500.0,0.00056438,120]
[358592692,1745295067425,-500.0,0.00056438,120]
[358592693,1745295067434,-558.46,0.00056438,120]
[358592694,1745295067443,-500.0,0.00056438,120]
[358592695,1745295067453,-500.0,0.00056438,120]
[358592696,1745295067462,-548.78,0.00056438,120]
[358592697,1745295067471,-500.0,0.00056438,120]
[358592698,1745295067480,-500.0,0.00056438,120]
[358592699,1745295067490,-500.0,0.00056438,120]
[358592700,1745295067499,-1159.28,0.00056438,120]
[358592701,1745295067508,-500.0,0.00056438,120]
[358592702,1745295067518,-695.53,0.00056438,120]
[358592703,1745295067528,-500.0,0.00056438,120]
[358592704,1745295067538,-500.0,0.00056438,120]
[358592705,1745295067547,-500.0,0.00056438,120]
[358592706,1745295067557,-500.0,0.00056438,120]
[358592707,1745295067566,-500.0,0.00056438,120]
[358592708,1745295067575,-819.39,0.00056438,120]
[358592709,1745295067584,-500.0,0.00056438,120]
[358592710,1745295067593,-500.0,0.00056438,120]
[358592711,1745295067603,-500.0,0.00056438,120]
[358592712,1745295067612,-500.0,0.00056438,120]
[358592713,1745295067621,-500.0,0.00056438,120]
[358592714,1745295067631,-500.0,0.00056438,120]
[358592715,1745295067639,-500.0,0.00056438,120]
[358592716,1745295067648,-500.0,0.00056438,120]
[358592717,1745295067658,-500.0,0.00056438,120]
[358592718,1745295067668,-568.16,0.00056438,120]
[358592719,1745295067677,-500.0,0.00056438,120]
[358592720,1745295067686,-243.73878869,0.00056438,120]
[358592721,1745295067695,-534.15,0.00056438,120]
[358592722,1745295067705,-500.0,0.00056438,120]
[358592723,1745295067714,-534.52,0.00056438,120]
[358592724,1745295067723,-1643.32,0.00056438,120]
[358592725,1745295067733,-501.13,0.00056438,120]
[358592726,1745295067742,-2238.72,0.00056438,2]
[358592727,1745295067752,-500.0,0.00056438,120]
[358592728,1745295067762,-632.59,0.00056438,120]
[358592729,1745295067772,-500.0,0.00056438,120]